bitfinex-derivatives/quotes_BNBF0:USTF0_20250807
["timestamp","ask_amount","ask_price","bid_price","bid_amount"]
[1754570931253,0.82831284,774.61,773.76,0.22473289]
[1754570931551,0.82831284,774.6,773.76,0.22473289]
[1754570931751,0.822,774.66,773.76,0.22473289]
[1754570932055,0.82831166,774.65,773.76,0.22473289]
[1754570932251,0.822,774.66,773.76,0.22473289]
[1754570932451,0.82833085,774.65,773.76,0.22473289]
[1754570932756,0.82833085,774.64,773.76,0.22473289]
[1754570933052,0.82833085,774.63,773.76,0.22473289]
[1754570933252,0.82833085,774.62,773.76,0.22473289]
[1754570933452,0.82833085,774.61,773.76,0.22473289]
[1754570933655,0.82833085,774.6,773.76,0.22473289]
[1754570933854,0.82833085,774.59,773.76,0.22473289]
[1754570934051,1.12,774.6,773.76,0.22473289]
[1754570934256,0.82824853,774.59,773.76,0.22473289]
[1754570934455,1.12,774.6,773.76,0.22473289]
[1754570934653,0.82825526,774.59,773.76,0.22473289]
[1754570934853,1.12,774.6,773.76,0.22473289]
[1754570935453,0.82821333,774.59,773.76,0.22473289]
[1754570935657,1.12,774.6,773.76,0.22473289]
[1754570936854,0.82796229,774.59,773.76,0.22473289]
[1754570937052,0.82796229,774.58,773.76,0.22473289]
[1754570937256,0.82796229,774.57,773.76,0.22473289]
[1754570937456,0.82796229,774.56,773.76,0.22473289]
[1754570937654,0.82796229,774.55,773.76,0.22473289]
[1754570937857,0.82796229,774.54,773.76,0.22473289]
[1754570938055,0.82796229,774.53,773.76,0.22473289]
[1754570938257,0.82796229,774.52,773.76,0.22473289]
[1754570938558,1.12,774.6,773.76,0.22473289]
[1754570938758,0.82782344,774.59,773.76,0.22473289]
[1754570938953,0.82782344,774.58,773.76,0.22473289]
[1754570939154,1.12,774.6,773.76,0.22473289]
[1754570939155,0.82782344,774.57,773.76,0.22473289]
[1754570939355,0.82782344,774.56,773.76,0.22473289]
[1754570939569,1.12,774.6,773.76,0.22473289]
[1754570939570,0.82782344,774.55,773.76,0.22473289]
[1754570939758,1.12,774.6,773.76,0.22473289]
[1754570939759,0.82782344,774.54,773.76,0.22473289]
[1754570939962,0.82782344,774.53,773.76,0.22473289]
[1754570940159,0.82782344,774.52,773.76,0.22473289]
[1754570940455,0.82782344,774.51,773.76,0.22473289]
[1754570940755,0.82782344,774.5,773.76,0.22473289]
[1754570940955,0.82782344,774.49,773.63,0.86951769]
[1754570941162,0.82782344,774.48,773.63,0.86951769]
[1754570941458,0.82782344,774.47,773.63,0.22476845]
[1754570941658,0.82782344,774.46,773.63,0.22476845]
[1754570941869,0.82782344,774.45,773.63,0.22476845]
[1754570942056,0.82782344,774.44,773.63,0.22476845]
[1754570942262,0.82782344,774.43,773.63,0.22476845]
[1754570942462,0.82782344,774.42,773.63,0.22476845]
[1754570942665,0.82782344,774.41,773.63,0.22476845]
[1754570942869,0.82782344,774.4,773.63,0.22476845]
[1754570943157,0.82782344,774.39,773.63,0.22476845]
[1754570943360,0.86336485,774.5,773.63,0.22476845]
[1754570943560,0.82715771,774.49,773.63,0.22476845]
[1754570943854,0.82715771,774.48,773.63,0.22476845]
[1754570944062,0.82703138,774.47,773.63,0.22476845]
[1754570944257,0.82703138,774.46,773.63,0.22476845]
[1754570944459,0.82703138,774.45,773.41,0.86951769]
[1754570944662,0.82703138,774.44,773.41,0.86951769]
[1754570944862,0.82703138,774.43,773.52,0.22479967]
[1754570945071,0.82703138,774.42,773.52,0.22479967]
[1754570945260,0.82703138,774.41,773.52,0.22479967]
[1754570945459,0.82703138,774.4,773.52,0.22479967]
[1754570945658,0.82703138,774.39,773.52,0.22479967]
[1754570945965,0.82703138,774.38,773.52,0.22479967]
[1754570946260,0.82703138,774.37,773.52,0.22479967]
[1754570946464,0.86336485,774.14,773.04,0.86951769]
[1754570946764,0.82648818,774.13,773.2,0.22485559]
[1754570946963,0.82648818,774.12,773.2,0.22485559]
[1754570947165,0.82648818,774.11,773.2,0.22485559]
[1754570947362,0.82648818,774.1,773.2,0.22485559]
[1754570947562,0.82648818,774.09,773.2,0.22485559]
[1754570947762,0.82648818,774.08,773.2,0.22485559]
[1754570947964,0.82648818,774.07,773.2,0.22485559]
[1754570948166,0.82648818,774.06,773.2,0.22485559]
[1754570948365,0.82648818,774.05,773.2,0.22485559]
[1754570948566,0.82648818,774.04,773.2,0.22485559]
[1754570948765,0.82648818,774.03,773.2,0.22485559]
[1754570949067,0.82648818,774.02,773.2,0.22485559]
[1754570949264,0.82648818,774.01,773.2,0.22485559]
[1754570949464,0.82648818,774.0,773.2,0.22485559]
[1754570949664,0.86336485,774.28,773.2,0.22485559]
[1754570949665,0.82648818,773.99,773.2,0.22485559]
[1754570949866,0.82648818,773.98,773.2,0.22485559]
[1754570950064,0.82648818,773.97,773.2,0.22485559]
[1754570950265,0.86336485,774.29,773.2,0.22485559]
[1754570950465,0.86336485,774.21,773.2,0.22485559]
[1754570950664,0.86336485,774.17,773.2,0.22485559]
[1754570950868,0.82175284,774.16,773.2,0.22485559]
[1754570951064,0.82175284,774.15,773.2,0.22485559]
[1754570951265,0.82175284,774.14,773.2,0.22485559]
[1754570951470,0.82175284,774.13,773.2,0.22485559]
[1754570951770,0.82175284,774.12,773.2,0.22485559]
[1754570951972,0.82175284,774.11,773.2,0.22485559]
[1754570952170,0.82175284,774.1,773.2,0.22485559]
[1754570952368,0.846,774.12,773.2,0.22485559]
[1754570952569,0.82117229,774.11,773.2,0.22485559]
[1754570952770,0.82117229,774.1,773.2,0.22485559]
[1754570952970,0.82117229,774.09,773.2,0.22485559]
[1754570953166,0.82117229,774.08,773.2,0.22485559]
[1754570953367,0.82032927,774.07,773.2,0.22485559]
[1754570953573,0.82032927,774.06,773.2,0.22485559]
[1754570953767,0.82032927,774.05,773.2,0.22485559]
[1754570954067,0.82032927,774.04,773.2,0.22485559]
[1754570954285,0.82032927,774.03,773.2,0.22485559]
[1754570954583,0.82032927,774.02,773.2,0.22485559]
[1754570954769,0.82032927,774.01,773.2,0.22485559]
[1754570954969,0.846,774.12,773.2,0.22485559]
[1754570954970,0.82032927,774.0,773.2,0.22485559]
[1754570955168,0.82032927,773.99,773.2,0.22485559]
[1754570955369,0.82032927,773.98,773.2,0.22485559]
[1754570955567,0.82032927,773.97,773.2,0.22485559]
[1754570955868,0.846,774.12,773.2,0.22485559]
[1754570956067,0.82022811,774.11,773.2,0.22485559]
[1754570956380,0.82022811,774.1,773.2,0.22485559]
[1754570956669,0.82022811,774.09,773.2,0.22485559]
[1754570956873,0.846,774.12,773.2,0.22485559]
[1754570956874,0.82022811,774.08,773.2,0.22485559]
[1754570957066,0.82022811,774.07,773.2,0.22485559]
[1754570957373,0.82022811,774.06,773.2,0.22485559]
[1754570957674,0.82022811,774.05,773.2,0.22485559]
[1754570957874,0.82022811,774.04,772.77,0.86951769]
[1754570958070,0.82022811,774.03,773.14,0.22493262]
[1754570958370,0.81958884,774.02,773.14,0.22493262]
[1754570958573,0.81958884,774.01,773.14,0.22493262]
[1754570958771,0.81958884,774.0,773.14,0.22493262]
[1754570958976,1.052,774.01,773.14,0.22493262]
[1754570959172,0.81927424,774.0,772.76,0.86951769]
[1754570959375,1.052,774.01,773.05,0.22495225]
[1754570959571,0.81897691,774.0,773.05,0.22495225]
[1754570959774,0.81897691,773.99,773.05,0.22495225]
[1754570960075,0.81897691,773.98,773.05,0.22495225]
[1754570960376,0.81897691,773.97,773.05,0.22495225]
[1754570960574,0.81897691,773.96,773.05,0.22495225]
[1754570960772,0.81897691,773.95,773.05,0.22495225]
[1754570960972,1.052,774.01,772.63,0.86951769]
[1754570961171,1.052,774.01,772.99,0.22496897]
[1754570961477,0.81858811,774.0,772.99,0.22496897]
[1754570961772,0.81858811,773.99,772.99,0.22496897]
[1754570961976,0.81858811,773.98,772.99,0.22496897]
[1754570962175,0.81858811,773.97,772.99,0.22496897]
[1754570962374,0.81858811,773.96,772.99,0.22496897]
[1754570962574,0.81858811,773.95,772.99,0.22496897]
[1754570962779,0.81858811,773.94,772.99,0.22496897]
[1754570962982,0.81858811,773.93,772.99,0.22496897]
[1754570963182,1.052,774.01,772.99,0.22496897]
[1754570963183,0.81858811,773.92,772.99,0.22496897]
[1754570963376,0.81858811,773.91,772.99,0.22496897]
[1754570963676,0.81858811,773.9,772.99,0.22496897]
[1754570963880,0.81858811,773.89,772.99,0.22496897]
[1754570964080,0.81858811,773.88,772.99,0.22496897]
[1754570964278,0.81858811,773.87,772.99,0.22496897]
[1754570964477,1.052,774.01,772.99,0.22496897]
[1754570964681,0.81727116,774.0,772.99,0.22496897]
[1754570964978,0.81727116,773.99,772.52,0.86951769]
[1754570965178,0.81727116,773.98,772.88,0.22499442]
[1754570965482,0.81727116,773.97,772.88,0.22499442]
[1754570965681,0.81727116,773.96,772.88,0.22499442]
[1754570965878,0.81727116,773.95,772.88,0.22499442]
[1754570966080,1.052,774.01,772.88,0.22499442]
[1754570966081,0.81727116,773.94,772.88,0.22499442]
[1754570966289,0.81727116,773.93,772.88,0.22499442]
[1754570966487,0.81727116,773.92,772.88,0.22499442]
[1754570966691,0.81727116,773.91,772.88,0.22499442]
[1754570966991,0.81727116,773.9,772.88,0.22499442]
[1754570967191,0.81727116,773.89,772.88,0.22499442]
[1754570967486,0.81727116,773.88,772.88,0.22499442]
[1754570967692,0.81727116,773.87,772.88,0.22499442]
[1754570967888,0.81727116,773.86,772.88,0.22499442]
[1754570968089,0.81727116,773.85,772.88,0.22499442]
[1754570968291,1.052,774.01,772.88,0.22499442]
[1754570968493,0.81650129,774.0,772.88,0.22499442]
[1754570968693,0.81650129,773.99,772.88,0.22499442]
[1754570968891,0.81650129,773.98,772.88,0.22499442]
[1754570969093,0.81650129,773.97,772.88,0.22499442]
[1754570969289,0.81650129,773.96,772.88,0.22499442]
[1754570969489,0.81650129,773.95,772.88,0.22499442]
[1754570969692,0.81650129,773.94,772.88,0.22499442]
[1754570969993,0.81650129,773.93,772.88,0.22499442]
[1754570970393,0.81649452,773.92,772.88,0.22499442]
[1754570970595,0.81649452,773.91,772.88,0.22499442]
[1754570970896,0.81649452,773.9,772.88,0.22499442]
[1754570971094,0.81649452,773.89,772.88,0.22499442]
[1754570971300,0.81649452,773.88,772.38,0.86951769]
[1754570971594,0.81649452,773.87,772.73,0.22503371]
[1754570971790,0.81649452,773.86,772.73,0.22503371]
[1754570971991,0.81649452,773.85,772.73,0.22503371]
[1754570972189,0.81649452,773.84,772.73,0.22503371]
[1754570972403,0.81649452,773.83,772.73,0.22503371]
[1754570972599,0.81649452,773.82,772.25,0.86951769]
[1754570972799,0.81649452,773.82,770.66,4.033555]
[1754570972800,0.81649452,773.81,772.48,0.22507009]
[1754570973095,0.81649452,773.8,772.48,0.22507009]
[1754570973304,0.81649452,773.79,772.48,0.22507009]
[1754570973510,0.81649452,773.78,772.48,0.22507009]
[1754570973694,0.81649452,773.77,772.48,0.22507009]
[1754570973891,0.81649452,773.76,772.48,0.22507009]
[1754570974093,0.81649452,773.75,772.48,0.22507009]
[1754570974302,0.81649452,773.74,772.48,0.22507009]
[1754570974492,0.81649452,773.73,772.48,0.22507009]
[1754570974694,0.81649452,773.72,772.48,0.22507009]
[1754570975005,0.81649452,773.71,772.48,0.22507009]
[1754570975194,0.81649452,773.7,772.48,0.22507009]
[1754570975391,0.81649452,773.69,772.48,0.22507009]
[1754570975697,0.81649452,773.68,772.48,0.22507009]
[1754570975902,0.81649452,773.67,772.48,0.22507009]
[1754570976092,0.86336485,774.06,772.48,0.22507009]
[1754570976294,0.81517684,774.05,772.48,0.22507009]
[1754570976495,0.81517684,774.04,772.48,0.22507009]
[1754570976691,1.66304992,774.04,772.48,0.22507009]
[1754570976994,0.84787308,773.95,772.48,0.22507009]
[1754570977196,0.81517684,773.94,772.48,0.22507009]
[1754570977392,0.81517684,773.93,772.48,0.22507009]
[1754570977594,0.81517684,773.92,772.48,0.22507009]
[1754570977806,0.81517684,773.91,772.48,0.22507009]
[1754570978091,0.81517684,773.9,772.48,0.22507009]
[1754570978295,0.81517684,773.89,772.48,0.22507009]
[1754570978495,0.81517684,773.88,772.48,0.22507009]
[1754570978702,0.81517684,773.87,772.48,0.22507009]
[1754570978896,0.81517684,773.86,772.48,0.22507009]
[1754570979297,0.81468827,773.85,772.48,0.22507009]
[1754570979594,0.81468827,773.84,772.48,0.22507009]
[1754570979900,0.81468827,773.83,772.48,0.22507009]
[1754570980101,0.81468827,773.82,772.48,0.22507009]
[1754570980309,0.81468827,773.81,772.48,0.22507009]
[1754570980495,0.81468827,773.8,772.48,0.22507009]
[1754570980699,0.81468827,773.79,772.48,0.22507009]
[1754570981004,0.81468827,773.78,772.48,0.22507009]
[1754570981203,0.81468827,773.77,772.48,0.22507009]
[1754570981403,0.81468827,773.76,772.48,0.22507009]
[1754570981602,0.81468827,773.75,772.48,0.22507009]
[1754570981801,0.81468827,773.74,772.48,0.22507009]
[1754570981999,0.81468827,773.73,772.48,0.22507009]
[1754570982204,0.81468827,773.72,772.48,0.22507009]
[1754570982396,0.8144974,773.71,772.48,0.22507009]
[1754570982597,0.8144974,773.7,772.48,0.22507009]
[1754570982896,0.8144974,773.69,772.48,0.22507009]
[1754570983097,0.8144974,773.68,772.48,0.22507009]
[1754570983295,0.8144974,773.67,772.48,0.22507009]
[1754570983494,0.8144974,773.66,772.48,0.22507009]
[1754570983696,0.8144974,773.65,772.48,0.22507009]
[1754570983896,0.8144974,773.64,772.48,0.22507009]
[1754570984101,0.8144974,773.63,772.48,0.22507009]
[1754570984401,0.728,773.63,772.48,0.22507009]
[1754570986698,0.81457149,773.62,772.48,0.22507009]
[1754570986902,0.81457149,773.61,772.48,0.22507009]
[1754570987199,0.728,773.63,772.48,0.22507009]
[1754570990800,0.942,773.62,772.48,0.22507009]
[1754570992205,0.81593351,773.61,772.48,0.22507009]
[1754570992501,0.942,773.62,772.48,0.22507009]
[1754570998616,0.81947419,773.61,772.48,0.22507009]
[1754570998809,0.81947419,773.6,772.48,0.22507009]
[1754570999011,0.81947419,773.59,772.48,0.22507009]
[1754570999310,0.81947419,773.58,772.48,0.22507009]
[1754570999604,0.81947419,773.57,772.48,0.22507009]
[1754570999808,0.942,773.62,772.48,0.22507009]
[1754571000007,0.82005116,773.61,772.48,0.22507009]
[1754571000210,0.82005116,773.6,772.48,0.22507009]
[1754571000410,0.82005116,773.59,772.48,0.22507009]
[1754571000610,0.82005116,773.58,772.48,0.22507009]
[1754571000806,0.942,773.62,772.48,0.22507009]
[1754571000807,0.82005116,773.57,772.48,0.22507009]
[1754571001110,0.82005116,773.56,772.48,0.22507009]
[1754571001307,0.82005116,773.55,772.48,0.22507009]
[1754571001520,0.82005116,773.54,772.48,0.22507009]
[1754571001715,0.942,773.62,772.48,0.22507009]
[1754571001716,0.82005116,773.53,772.48,0.22507009]
[1754571001913,0.82005116,773.52,772.48,0.22507009]
[1754571002111,0.82005116,773.51,772.48,0.22507009]
[1754571002307,0.942,773.62,772.48,0.22507009]
[1754571002512,0.82090357,773.61,772.48,0.22507009]
[1754571002707,0.82090357,773.6,772.48,0.22507009]
[1754571002914,0.82090357,773.59,772.48,0.22507009]
[1754571003113,0.82090357,773.58,772.48,0.22507009]
[1754571003321,0.82090357,773.57,772.48,0.22507009]
[1754571003615,0.942,773.62,772.48,0.22507009]
[1754571003616,0.82090357,773.56,772.48,1.08230263]
[1754571003816,0.82090357,773.55,772.48,1.08230263]
[1754571004012,0.82090357,773.54,772.48,1.08230263]
[1754571004219,0.82090357,773.53,772.5,0.85723254]
[1754571004415,0.82090357,773.52,772.5,0.85723254]
[1754571004612,0.942,773.62,772.5,0.85723254]
[1754571004613,0.82090357,773.51,772.5,0.85723254]
[1754571004813,0.82090357,773.51,772.48,0.22507009]
[1754571004814,0.82090357,773.5,772.48,1.08230263]
[1754571005117,0.82090357,773.49,772.48,0.22507009]
[1754571005314,0.942,773.62,772.5,0.85723254]
[1754571005517,0.8226423,773.61,772.49,0.85723254]
[1754571005816,0.8226423,773.6,772.49,0.85723254]
[1754571006012,0.8226423,773.6,772.48,0.22507009]
[1754571006013,0.8226423,773.59,772.5,0.85723254]
[1754571006222,0.8226423,773.58,772.52,0.85723254]
[1754571006423,0.8226423,773.57,772.52,0.85723254]
[1754571006612,0.8226423,773.56,772.52,0.85723254]
[1754571006916,0.8226423,773.55,772.5,0.85723254]
[1754571007113,0.8226423,773.54,772.5,0.85723254]
[1754571007318,0.8226423,773.53,772.51,0.85723254]
[1754571007519,0.8226423,773.52,772.51,0.85723254]
[1754571007718,0.8226423,773.51,772.52,0.85723254]
[1754571007918,0.942,773.62,772.52,0.85723254]
[1754571007919,0.8226423,773.5,772.52,0.85723254]
[1754571008119,0.8226423,773.49,772.52,0.85723254]
[1754571008414,0.82242646,773.48,772.52,0.85723254]
[1754571008618,0.942,773.62,772.52,0.85723254]
[1754571008816,0.82247679,773.61,772.51,0.85723254]
[1754571009119,0.82247679,773.6,772.51,0.85723254]
[1754571009419,0.22504244,773.5,772.51,0.85723254]
[1754571009614,0.82247679,773.49,772.51,0.85723254]
[1754571010128,0.82247679,773.49,772.53,0.85723254]
[1754571010316,0.82247679,773.49,772.48,0.22507009]
[1754571010317,0.82247679,773.49,772.55,0.85723254]
[1754571010829,0.82247679,773.49,772.56,0.85723254]
[1754571011028,0.871,773.48,772.56,0.85723254]
[1754571011518,0.871,773.48,772.55,0.85723254]
[1754571012018,0.871,773.48,772.48,0.22507009]
[1754571012019,0.871,773.48,772.54,0.85723254]
[1754571012818,0.871,773.48,772.55,0.85723254]
[1754571013321,0.871,773.48,772.56,0.85723254]
[1754571015124,0.871,773.48,772.48,0.22507009]
[1754571015329,0.82419804,773.47,772.57,0.86725953]
[1754571015525,0.871,773.48,772.57,0.86725953]
[1754571015820,0.82418493,773.47,772.57,0.86725953]
[1754571016021,0.871,773.48,772.57,0.86725953]
[1754571016220,0.871,773.48,772.48,0.22507009]
[1754571016221,0.82418479,773.47,772.58,0.86725953]
[1754571016424,0.871,773.48,772.56,0.86725953]
[1754571016831,0.871,773.48,772.59,0.86725953]
[1754571017833,0.871,773.48,772.6,0.86725953]
[1754571018133,0.871,773.48,772.61,0.86725953]
[1754571018323,0.788,773.47,772.61,0.86725953]
[1754571018627,0.788,773.47,772.62,0.86725953]
[1754571019227,0.788,773.47,772.65,0.86725953]
[1754571019429,0.788,773.47,772.67,0.86725953]
[1754571019728,0.788,773.47,772.7,0.86725953]
[1754571020135,0.788,773.47,772.74,0.86725953]
[1754571021228,0.788,773.47,772.75,0.86725953]
[1754571021630,0.788,773.47,772.72,0.86725953]
[1754571023231,0.788,773.47,772.73,0.86725953]
[1754571023431,0.788,773.47,772.72,0.86725953]
[1754571024027,0.788,773.47,772.73,0.86725953]
[1754571025227,0.788,773.47,772.72,0.86725953]
[1754571025740,0.788,773.47,772.78,0.86725953]
[1754571026133,0.788,773.47,772.81,0.86725953]
[1754571026333,0.788,773.47,772.83,0.86725953]
[1754571026538,0.788,773.47,772.86,0.86725953]
[1754571026839,0.788,773.47,772.9,0.86725953]
[1754571027040,0.788,773.47,772.89,0.86725953]
[1754571027232,0.788,773.47,772.88,0.86725953]
[1754571027736,0.788,773.47,772.9,0.86725953]
[1754571027936,0.788,773.47,772.92,0.86725953]
[1754571028235,0.788,773.47,772.91,0.86725953]
[1754571028436,0.788,773.47,772.93,0.86725953]
[1754571028637,0.788,773.47,772.96,0.86725953]
[1754571030137,0.788,773.47,772.94,0.86725953]
[1754571030638,0.788,773.47,772.95,0.86725953]
[1754571030936,0.788,773.47,772.98,0.86725953]
[1754571031135,0.788,773.47,772.97,0.86725953]
[1754571032039,0.788,773.47,772.48,0.22507009]
[1754571032040,0.788,773.47,772.99,0.86725953]
[1754571032241,0.788,773.47,772.77,1.1524443]
[1754571032242,0.788,773.47,773.01,0.86725953]
[1754571032736,0.788,773.47,773.02,0.86725953]
[1754571032942,0.788,773.47,773.04,0.86725953]
[1754571033237,0.788,773.47,773.13,0.86725953]
[1754571033642,0.788,773.47,773.14,0.86725953]
[1754571033839,0.788,773.47,773.13,0.86725953]
[1754571035153,0.788,773.47,773.12,0.86725953]
[1754571035336,0.788,773.47,773.11,0.86725953]
[1754571036038,0.788,773.47,773.12,0.86725953]
[1754571036239,0.788,773.47,773.11,0.86725953]
[1754571036844,0.788,773.47,773.12,0.86725953]
[1754571037044,0.788,773.47,773.11,0.86725953]
[1754571037237,0.767,773.46,773.1,0.86725953]
[1754571037743,0.767,773.46,773.11,0.86725953]
[1754571038139,0.767,773.46,773.12,0.86725953]
[1754571038344,0.767,773.46,773.16,0.86725953]
[1754571039239,0.767,773.46,773.13,0.86725953]
[1754571039741,0.767,773.46,773.14,0.86725953]
[1754571040245,0.767,773.46,773.13,0.86725953]
[1754571040745,0.767,773.46,773.16,0.86725953]
[1754571041246,0.767,773.46,773.15,0.86725953]
[1754571041945,0.767,773.46,773.16,0.86725953]
[1754571042245,0.767,773.46,773.15,0.86725953]
[1754571042942,0.767,773.46,772.48,0.22507009]
[1754571042943,0.767,773.46,773.12,0.86725953]
[1754571043146,0.767,773.46,773.18,0.86725953]
[1754571043843,0.767,773.46,773.2,0.86725953]
[1754571044246,0.767,773.46,773.19,0.86725953]
[1754571044447,0.767,773.46,773.24,0.86725953]
[1754571045257,0.767,773.46,773.27,0.86725953]
[1754571046252,0.767,773.46,773.26,0.86725953]
[1754571047051,0.767,773.46,773.25,0.86725953]
[1754571047556,0.767,773.46,773.24,0.86725953]
[1754571048257,0.767,773.46,773.23,0.86725953]
[1754571048455,0.767,773.46,773.24,0.86725953]
[1754571048961,0.767,773.46,773.23,0.86725953]
[1754571049258,0.767,773.46,773.22,0.86725953]
[1754571050154,0.767,773.46,773.04,1.1524443]
[1754571050155,0.767,773.46,773.21,0.86725953]
[1754571052254,0.767,773.46,773.2,0.86725953]
[1754571053158,0.767,773.46,773.19,0.86725953]
[1754571054256,0.767,773.46,773.18,0.86725953]
[1754571055059,0.767,773.46,773.19,0.86725953]
[1754571055657,0.767,773.46,773.28,0.86725953]
[1754571056361,0.767,773.46,773.29,0.86725953]
[1754571056561,0.767,773.46,773.37,0.86725953]
[1754571056957,0.767,773.46,773.4,0.86725953]
[1754571057161,0.767,773.46,773.39,0.86725953]
[1754571058062,0.767,773.46,773.38,0.86725953]
[1754571059161,0.767,773.46,773.37,0.86725953]
[1754571059962,0.767,773.46,773.21,1.1524443]
[1754571059963,0.767,773.46,773.36,0.86725953]
[1754571060366,0.767,773.46,773.39,0.86725953]
[1754571061265,0.767,773.46,773.41,0.86725953]
[1754571061665,0.767,773.46,773.4,0.86725953]
[1754571062265,0.767,773.46,773.39,0.86725953]
[1754571062466,0.767,773.46,773.37,0.86725953]
[1754571062667,0.767,773.46,772.99,1.7286664]
[1754571062668,0.767,773.46,773.38,0.86725953]
[1754571062966,0.767,773.46,773.35,0.86725953]
[1754571063265,0.767,773.46,773.27,0.86725953]
[1754571063466,0.767,773.46,773.2,0.86725953]
[1754571063966,0.767,773.46,773.19,0.86725953]
[1754571064166,0.767,773.46,773.2,0.86725953]
[1754571064368,1.089,773.61,773.19,0.86725953]
[1754571064663,1.089,773.61,773.2,0.86725953]
[1754571065663,1.089,773.61,773.19,0.86725953]
[1754571066163,1.089,773.61,773.21,0.86725953]
[1754571067361,1.089,773.61,773.24,0.86725953]
[1754571067563,1.089,773.61,773.3,0.86725953]
[1754571067768,1.089,773.61,773.33,0.86725953]
[1754571068266,1.089,773.61,773.34,0.86725953]
[1754571068464,1.089,773.61,773.37,0.86725953]
[1754571068669,1.089,773.61,773.4,0.86725953]
[1754571069766,1.089,773.61,772.52,2.8811107]
[1754571069767,1.089,773.61,773.38,0.86725953]
[1754571069969,1.089,773.61,773.37,0.86725953]
[1754571070665,1.089,773.61,773.36,0.86725953]
[1754571070869,1.089,773.61,773.34,0.86725953]
[1754571071269,1.089,773.61,773.35,0.86725953]
[1754571072070,1.089,773.61,773.36,0.86725953]
[1754571072671,1.089,773.61,773.37,0.86725953]
[1754571072865,1.089,773.61,773.4,0.86725953]
[1754571073165,1.089,773.61,773.44,0.86725953]
[1754571073371,1.089,773.61,773.5,0.86725953]
[1754571074170,1.089,773.61,773.52,0.86725953]
[1754571074373,1.089,773.61,773.51,0.86725953]
[1754571074573,1.089,773.61,773.52,0.86725953]
[1754571074973,1.089,773.61,773.53,0.86725953]
[1754571075374,1.089,773.61,773.54,0.86725953]
[1754571075570,1.089,773.61,772.48,0.22507009]
[1754571075571,1.089,773.61,773.6,0.86725953]
[1754571076274,1.089,773.61,773.43,1.1524443]
[1754571077079,1.089,773.61,773.44,1.1524443]
[1754571077273,1.089,773.61,773.45,1.1524443]
[1754571079178,1.089,773.61,773.46,1.1524443]
[1754571079671,1.089,773.61,773.51,1.1524443]
[1754571079873,1.089,773.61,773.53,1.1524443]
[1754571080272,1.089,773.61,773.56,1.1524443]
[1754571080675,1.089,773.61,773.53,1.1524443]
[1754571082379,1.089,773.61,773.55,1.1524443]
[1754571082679,1.089,773.61,773.56,1.1524443]
[1754571083080,1.089,773.61,773.57,1.1524443]
[1754571083676,1.014,773.66,773.58,1.1524443]
[1754571084982,1.014,773.66,773.56,1.1524443]
[1754571085182,1.014,773.66,773.58,1.1524443]
[1754571085476,1.014,773.66,773.57,1.1524443]
[1754571085981,1.014,773.66,773.54,1.1524443]
[1754571087180,1.014,773.66,773.55,1.1524443]
[1754571090183,1.014,773.66,773.56,1.1524443]
[1754571091283,1.014,773.66,773.57,1.1524443]
[1754571091783,1.014,773.66,773.58,1.1524443]
[1754571093083,1.014,773.66,773.59,1.1524443]
[1754571093378,1.014,773.66,773.57,1.1524443]
[1754571093577,1.014,773.66,773.58,1.1524443]
[1754571093881,1.014,773.66,773.57,1.1524443]
[1754571094082,1.014,773.66,773.58,1.1524443]
[1754571094584,1.014,773.66,773.57,1.1524443]
[1754571095778,1.014,773.66,773.56,1.1524443]
[1754571095982,1.014,773.66,773.58,1.1524443]
[1754571096180,1.014,773.66,773.57,1.1524443]
[1754571097184,1.014,773.66,773.56,1.1524443]
[1754571097685,1.014,773.66,773.57,1.1524443]
[1754571099187,1.014,773.66,773.58,1.1524443]
[1754571099888,1.014,773.66,773.57,1.1524443]
[1754571100585,1.014,773.66,773.59,1.1524443]
[1754571100789,0.855,774.44,773.49,1.1524443]
[1754571101000,0.855,774.44,773.71,0.86503319]
[1754571101184,0.855,774.44,773.72,0.86503319]
[1754571103191,0.855,774.44,773.73,0.86503319]
[1754571103587,0.82,774.43,773.72,0.86503319]
[1754571105190,0.82,774.43,773.73,0.86503319]
[1754571106286,0.82,774.43,773.74,0.86503319]
[1754571106490,0.82,774.43,773.75,0.86503319]
[1754571107088,0.82,774.43,773.78,0.86503319]
[1754571107288,0.82,774.43,773.75,0.86503319]
[1754571108895,0.82,774.43,773.76,0.86503319]
[1754571109193,0.82,774.43,773.77,0.86503319]
[1754571109492,0.82,774.43,773.78,0.86503319]
[1754571109690,0.82,774.43,773.77,0.86503319]